Cogmind - Beta 16 @@@ ROGUE MODE // 2025.11.22 @ 19:03:43 Player: Humbble Result: Destroyed by G-67 Veteran with Plasma Rifle Performance ------------- Evolutions (5) 2500 Regions Visited (14) 2800 Robots Destroyed (112) 560 Value Destroyed (4473) 4473 Prototype IDs (26) 520 Alien Tech Used (0) 0 Bonus (683) 683 TOTAL SCORE: 11536 Bonus ------- High Alert Combat Kills 383 Aligned with FarCom 300 Cogmind --------- Core Integrity 0/1000 Matter 300/300 Energy 100/100 System Corruption 2% Temperature Cool (0) Movement Core (700) Ox13 Location -5/Upper Caves Parts ------- > --- POWER (1) -------- (None) > --- PROPULSION (5) --- (None) > --- UTILITY (9) ------ High-capacity Storage Unit Advanced Visual Processing Unit Advanced Signal Interpreter > --- WEAPON (2) ------- (None) > --- INVENTORY (20) --- Micro Nuclear Core Light Angular Momentum Engine Light Angular Momentum Engine Advanced Heat Sink Advanced Heat Sink Advanced Sensor Array Layered Heavy Armor Plating Peak State ------------ > --- POWER ------------ Neutrino Core > --- PROPULSION ------- Carbon-fiber Leg Carbon-fiber Leg Carbon-fiber Leg Armored Leg Thunder Leg > --- UTILITY ---------- High-capacity Storage Unit Advanced Visual Processing Unit Advanced Signal Interpreter Advanced Targeting Computer Target Analyzer Core Analyzer Heart of Steel > --- WEAPON ----------- High-powered Shock Rifle Advanced Plasma Cannon > --- INVENTORY -------- Improved Deuterium Engine Micro Nuclear Core Light Angular Momentum Engine Light Angular Momentum Engine Carbon-fiber Leg Carbon-fiber Leg Carbon-fiber Leg Carbon-fiber Leg Carbon-fiber Leg Advanced Heat Sink Advanced Heat Sink Advanced Sensor Array Layered Heavy Armor Plating Lightning Gun Pulse Rifle Magnetic Acceleration Cannon Chainsword [Rating: 87] Favorites ----------- Power Ion Engine Engine Ion Engine Power Core Light Fission Core Reactor Light Antimatter Reactor Propulsion Aluminum Leg Treads Armored Treads Leg Aluminum Leg Flight Unit Flying Fortress v7 Utility Large Storage Unit Device Improved Heat Sink Storage Large Storage Unit Processor Advanced Visual Processing Unit Protection Improved Light Armor Plating Weapon Coil Gun Energy Gun High-powered Shock Rifle Energy Cannon Advanced Plasma Cannon Ballistic Gun Coil Gun Ballistic Cannon Magnetic Acceleration Cannon Launcher Heavy Rocket Launcher Impact Weapon Thunder Hammer Slashing Weapon Axe Build | -11 -10 -9 -9 -9 -8 -8 -7 -7 -7 -7 -7 -6 -5 -5 ------- Run | Yrd Mat Mat Min Exi Min Mat Fac Was Fac Low Low Fac Fac Upp Slots Evolved 10 | . . 2 . . . 2 2 . . . . 2 2 . Power . | . . . . . . . . . . . . . . . Propulsion 3 | . . 1 . . . 1 . . . . . 1 . . Utility 7 | . . 1 . . . 1 2 . . . . 1 2 . Weapon . | . . . . . . . . . . . . . . . Parts Attached 100 | 7 5 6 1 . 3 10 7 . 6 1 . 25 18 11 Power 11 | 1 . 1 1 . 1 . 1 . . 1 . 2 2 1 Engine 5 | 1 . 1 1 . 1 . . . . . . . . 1 Core 5 | . . . . . . . 1 . . . . 2 2 . Reactor 1 | . . . . . . . . . . 1 . . . . Propulsion 34 | 2 3 1 . . 2 1 . . . . . 11 7 7 Treads 13 | . . . . . . . . . . . . 11 2 . Leg 20 | 2 3 1 . . 2 . . . . . . . 5 7 Wheel . | . . . . . . . . . . . . . . . Hover . | . . . . . . . . . . . . . . . Flight 1 | . . . . . . 1 . . . . . . . . Utility 30 | 2 1 2 . . . 5 4 . 3 . . 8 5 . Device 13 | 1 . . . . . 3 1 . 2 . . 3 3 . Storage 3 | 1 1 . . . . . . . . . . 1 . . Processor 8 | . . 1 . . . . 3 . . . . 2 2 . Hackware . | . . . . . . . . . . . . . . . Protection 6 | . . 1 . . . 2 . . 1 . . 2 . . Artifact . | . . . . . . . . . . . . . . . Weapon 25 | 2 1 2 . . . 4 2 . 3 . . 4 4 3 Energy Gun 7 | 2 . . . . . 2 . . . . . . 2 1 Energy Cannon 1 | . . . . . . . . . . . . . 1 . Ballistic Gun 10 | . 1 2 . . . 1 1 . 2 . . 3 . . Ballistic Cannon 1 | . . . . . . . . . . . . . . 1 Launcher 3 | . . . . . . 1 1 . 1 . . . . . Special Weapon . | . . . . . . . . . . . . . . . Impact Weapon 1 | . . . . . . . . . . . . . 1 . Slashing Weapon 2 | . . . . . . . . . . . . 1 . 1 Piercing Weapon . | . . . . . . . . . . . . . . . Special Melee Weapon . | . . . . . . . . . . . . . . . Unidentified Prototypes 3 | . . . . . . . 1 . . . . . 2 . Parts Lost 48 | . 3 . . . . 1 . . . . . 12 8 24 Power 5 | . . . . . . . . . . . . 2 1 2 Propulsion 21 | . . . . . . . . . . . . 6 3 12 Utility 9 | . 1 . . . . 1 . . . . . 1 2 4 Weapon 13 | . 2 . . . . . . . . . . 3 2 6 Highest Loss Streak 21 | . 1 . . . . 1 . . . . . 4 5 21 To Critical Strikes . | . . . . . . . . . . . . . . . Average Backups 12 | 3 7 6 10 11 11 14 14 15 14 13 13 12 14 15 Power 2 | . 1 1 2 2 2 2 2 2 2 2 2 1 2 3 Propulsion 4 | 1 2 3 3 3 4 5 6 6 6 6 6 4 6 4 Utility 1 | . . . 1 2 1 1 1 2 2 1 . 1 1 3 Weapon 3 | 1 2 2 4 4 4 5 4 5 4 4 4 4 3 3 Tool/Special . | . . . . . . . . . . . . . . . Unused Backups 31 | . 6 . . . . 6 1 2 3 4 . 5 1 3 Power 6 | . . . . . . . 1 . . 1 . 2 . 2 Propulsion 8 | . 2 . . . . 4 . . . . . 1 1 . Utility 7 | . . . . . . 2 . . 1 3 . . . 1 Weapon 10 | . 4 . . . . . . 2 2 . . 2 . . Tool/Special . | . . . . . . . . . . . . . . . Average Slot Usage (%) 87 | . 97 95 89 88 100 71 74 76 75 75 76 93 94 75 Engine 4 | . 14 10 11 11 11 9 5 . . . . . . . Core 2 | . . . . . . . 1 7 7 . . 3 4 3 Treads 9 | . . . . . . . . . . . . 26 22 . Leg 13 | . 28 31 33 33 33 . . . . . . . 5 23 Flight 1 | . . . . . . 8 7 7 7 7 7 1 . . Device 5 | . 10 . . . . 8 7 7 7 7 7 6 8 4 Storage 8 | . 15 11 11 11 11 9 7 7 7 7 7 6 5 5 Processor 19 | . . 10 11 11 11 9 21 23 23 23 23 25 29 26 Protection 4 | . . 10 1 . 11 8 7 7 6 7 7 5 4 . Energy Gun 2 | . 22 . . . . . . . . . . . 3 3 Ballistic Gun 11 | . 4 21 22 22 22 16 14 15 13 6 11 11 . . Peak Build Rating 87 | 9 9 13 13 13 16 50 60 60 64 69 69 78 82 87 Average Rating 45 | 6 8 10 10 10 15 45 55 60 61 67 69 62 66 71 On Entrance 38 | . 9 6 13 10 13 16 48 60 60 64 69 69 53 82 Avg Prop Armor Cover (%) 6 | . . . . . . . . . . . . 6 . . Naked Turns . | . . . . . . . . . . . . . . . Heaviest Build 81 | 14 33 39 39 30 42 43 43 36 41 47 47 60 78 81 Greatest Support 116 | 20 20 30 30 30 30 50 50 50 50 50 50 116 116 84 Greatest Overweight (x) 20 | . 1 1 1 . 1 . . . . . . 15 1 20 Average Overweight (x) . | . . . . . 1 . . . . . . . . . Largest Inventory Capacity 20 | 8 15 15 15 15 15 15 15 15 15 15 15 20 20 20 Average Capacity 15 | 7 8 15 15 15 15 15 15 15 15 15 15 15 20 20 Most Carried 20 | 5 9 10 11 15 15 15 15 15 15 15 15 18 20 20 Average Carried 13 | 3 7 6 10 11 14 14 14 14 14 14 15 14 16 16 Final Capacity 20 | 8 15 15 15 15 15 15 15 15 15 15 15 20 20 20 Final Carried 20 | 5 9 10 11 15 15 15 15 15 15 15 15 17 20 8 Class Distribution -------------------- 62% | Mutant 33% | Scavenger-Mutant 4% | Scavenger-Skirmisher Dominant Class ---------------- Mutant | -10/Materials Mutant | -9/Materials Mutant | -9/Mines Mutant | -9/Exiles Mutant | -8/Mines Mutant | -8/Materials Scavenger-Mutant | -7/Factory Scavenger-Mutant | -7/Waste Scavenger-Mutant | -7/Factory Mutant | -7/Lower Caves Mutant | -7/Lower Caves Mutant | -6/Factory Scavenger-Mutant | -5/Factory Scavenger-Mutant | -5/Upper Caves Resources | -11 -10 -9 -9 -9 -8 -8 -7 -7 -7 -7 -7 -6 -5 -5 ----------- Run | Yrd Mat Mat Min Exi Min Mat Fac Was Fac Low Low Fac Fac Upp Matter Collected 3481 | 226 83 55 . . 210 375 164 . 122 172 . 1139 193 742 Remotely . | . . . . . . . . . . . . . . . Salvage Created 4531 | 12 351 55 . . 253 566 164 . 301 17 . 1812 759 241 Parts 233 | 4 31 3 . . 14 27 12 . 16 . . 95 25 6 Haulers Intercepted 1 | . . . . . . . . . . . . 1 . . Recyclers Shooed 10 | 1 1 . . . 3 . . . . . . 4 1 . Parts Field Recycled . | . . . . . . . . . . . . . . . Retrieved Matter . | . . . . . . . . . . . . . . . Parts Self-Destructed 13 | . . . . . . . . . . . . . . 13 Prevented . | . . . . . . . . . . . . . . . Parts Restored . | . . . . . . . . . . . . . . . Kills | -11 -10 -9 -9 -9 -8 -8 -7 -7 -7 -7 -7 -6 -5 -5 ------- Run | Yrd Mat Mat Min Exi Min Mat Fac Was Fac Low Low Fac Fac Upp Combat Hostiles Destroyed 91 | . 14 1 . . 5 12 3 . 5 . . 36 11 4 Melee 4 | . . . . . . . . . . . . . 1 3 Guns 66 | . 13 1 . . 5 9 3 . 2 . . 27 5 1 Cannons 5 | . . . . . . . . . . . . . 5 . AOE 16 | . 1 . . . . 3 . . 3 . . 9 . . Classes Destroyed 15 | 1 2 1 . . 2 . 1 . 4 . . 4 . . Worker 12 | . . . . . . . . . 1 . . 8 3 . Builder 3 | . . . . . . . . . 1 . . 2 . . Tunneler 1 | 1 . . . . . . . . . . . . . . Hauler 1 | . . . . . . . . . . . . 1 . . Recycler 3 | . . . . . . . . . 1 . . 2 . . Watcher 1 | . . . . . . . . . 1 . . . . . Swarmer 16 | . 9 . . . . . . . . . . 7 . . Saboteur 1 | . . . . . . . . . . . . 1 . . Grunt 42 | . 5 . . . 2 10 . . 2 . . 10 11 2 Brawler 2 | . . . . . 1 . . . . . . 1 . . Duelist 3 | . . . . . . . . . . . . 3 . . Sentry 8 | . . 1 . . . 2 1 . 2 . . 2 . . Specialist 4 | . . . . . . . . . . . . 4 . . Hunter 6 | . . . . . 2 . . . . . . 2 . 2 Programmer 9 | . . . . . . . 2 . 1 . . 6 . . Decomposer 1 | . . . . . . . . . . 1 . . . . Best Kill Streak 13 | 1 3 1 . . 2 4 1 . 6 . . 13 5 3 Combat Bots Only 9 | . 3 1 . . 2 4 1 . 3 . . 9 3 3 Max Kills in Single Turn 5 | 1 1 1 . . 1 2 1 . 2 1 . 5 2 1 Gunslinging 1 | . . . . . . . . . . . . 1 . . Exploded 4 | . 1 . . . . 2 . . 2 . . 4 . . Melee 1 | . . . . . . . . . . . . . 1 1 Uniques/NPCs Destroyed . | . . . . . . . . . . . . . . . Combat | -11 -10 -9 -9 -9 -8 -8 -7 -7 -7 -7 -7 -6 -5 -5 -------- Run | Yrd Mat Mat Min Exi Min Mat Fac Was Fac Low Low Fac Fac Upp Hostile Shots Fired 964 | . 81 5 . . 24 63 49 . 102 2 . 246 119 273 Missed 300 | . 26 1 . . 6 22 21 . 40 . . 83 35 66 Hits 664 | . 55 4 . . 18 41 28 . 62 2 . 163 84 207 Melee 12 | . . . . . 1 . . . . . . 11 . . Projectile 652 | . 55 4 . . 17 41 28 . 62 2 . 152 84 207 Critical Strikes 27 | . . . . . 1 . 2 . . . . 11 1 12 Actively Blocked 1 | . . . . . . . . . . . . 1 . . Part Disruptions 2 | . 1 . . . . . . . . . . 1 . . Damage Taken 11326 | . 559 58 . . 309 637 327 . 469 29 . 3287 1595 4056 Core 1540 | . 130 . . . 15 63 10 . 37 . . 280 59 946 Absorbed by Shields . | . . . . . . . . . . . . . . . Redirected to Shielding 65 | . . . . . . . . . . . . 49 16 . Regen/Repaired (Parts) 176 | . . 109 . . . . . . 67 . . . . . Core Remaining (%) 82 | 100 48 . . . 96 88 . . . . 93 67 . . Volleys Fired 284 | 5 32 2 . . 22 40 14 . 17 . . 95 41 16 Largest 2 | 2 2 2 . . 2 2 2 . 2 . . 2 2 2 Hottest 167 | 80 80 40 . . 43 43 46 . 56 . . 60 167 142 Shots Fired 516 | 8 56 4 . . 44 76 28 . 30 2 . 180 68 20 Gun 462 | 8 56 4 . . 44 72 28 . 26 . . 174 39 11 Cannon 38 | . . . . . . . . . . . . . 29 9 Launcher 16 | . . . . . . 4 . . 4 2 . 6 . . Special . | . . . . . . . . . . . . . . . Kinetic 372 | . 4 4 . . 44 72 28 . 26 . . 174 12 8 Thermal 94 | 5 28 . . . . . . . . . . . 54 7 Explosive 16 | . . . . . . 4 . . 4 2 . 6 . . Electromagnetic 34 | 3 24 . . . . . . . . . . . 2 5 Robot Hit Streak 21 | 3 9 9 . . 6 21 14 . 14 2 . 15 14 7 Robot Miss Streak 4 | 1 3 . . . 3 2 2 . 3 . . 4 3 2 Penetration Max 1 | . . . . . . . . . . . . 1 . . Secondary Targets 9 | . 2 . . . . 2 . . . . . 5 . . Max Gunslinging Chain 1 | . 1 . . . . 1 . . . . . 1 . . Shots Hit Robots 370 | 5 31 4 . . 27 58 22 . 20 1 . 131 53 18 Core Hits 241 | 1 22 2 . . 14 29 7 . 18 1 . 105 34 8 Critical Kills 3 | . . . . . . 1 . . . . . 1 1 . Critical Parts Destroyed 9 | . . . . . . . . . 1 . . 8 . . Critical Strikes 18 | . . . . . . 1 . . 1 . . 9 4 3 Burn 1 | . . . . . . . . . . . . . 1 . Destroy 12 | . . . . . . 1 . . 1 . . 9 1 . Blast 1 | . . . . . . . . . . . . . . 1 Corrupt 1 | . . . . . . . . . . . . . 1 . Sever 3 | . . . . . . . . . . . . . 1 2 Melee Attacks 21 | . . . . . . . . . . . . 8 5 8 Impact . | . . . . . . . . . . . . . . . Slashing 21 | . . . . . . . . . . . . 8 5 8 Piercing . | . . . . . . . . . . . . . . . Sneak Attacks 1 | . . . . . . . . . . . . 1 . . Combat Hostiles . | . . . . . . . . . . . . . . . Follow-up Attacks . | . . . . . . . . . . . . . . . Damage Inflicted 11148 | 61 465 54 . . 342 921 369 . 879 41 . 5803 1703 510 Guns 6026 | 61 377 54 . . 327 772 369 . 295 . . 3047 579 145 Cannons 852 | . . . . . . . . . . . . . 760 92 Explosions 3796 | . 66 . . . . 149 . . 584 41 . 2685 271 . Melee 422 | . . . . . . . . . . . . 65 93 264 Ramming 52 | . 22 . . . 15 . . . . . . 6 . 9 Kinetic 5205 | . 23 54 . . 327 772 369 . 295 . . 3047 226 92 Thermal 2278 | 46 269 . . . . . . . . . . 797 1065 101 Explosive 2662 | . . . . . . 149 . . 584 41 . 1888 . . Electromagnetic 529 | 15 151 . . . . . . . . . . . 319 44 Impact . | . . . . . . . . . . . . . . . Slashing 422 | . . . . . . . . . . . . 65 93 264 Piercing . | . . . . . . . . . . . . . . . Highest Corruption 7 | . . . . . . . 1 7 7 7 7 4 . 2 Average Corruption 4 | . . . . . . . 1 5 6 7 7 3 . 2 Corruption Purged 1 | . . . . . . . . . 1 . . . . . Corruption Blocked . | . . . . . . . . . . . . . . . Effects 52 | . . . . . . . 1 4 13 12 2 20 . . Message Errors 10 | . . . . . . . 1 1 1 2 . 5 . . Matter Fused 13 | . . . . . . . . 2 4 3 . 4 . . Heat Flow Errors 7 | . . . . . . . . . 1 . 2 4 . . Energy Discharges 5 | . . . . . . . . . 1 3 . 1 . . Parts Rejected 3 | . . . . . . . . 1 1 . . 1 . . Data Loss (minor) 5 | . . . . . . . . . 3 1 . 1 . . Data Loss (major) 2 | . . . . . . . . . . . . 2 . . Misfires 4 | . . . . . . . . . 1 2 . 1 . . Alerts 1 | . . . . . . . . . . 1 . . . . Weapon Failures 2 | . . . . . . . . . 1 . . 1 . . Overload Shots . | . . . . . . . . . . . . . . . Overflow Damage 186 | . 6 . . . . . . . 2 . . 178 . . Projectiles . | . . . . . . . . . . . . . . . Explosions 186 | . 6 . . . . . . . 2 . . 178 . . Melee . | . . . . . . . . . . . . . . . Knockbacks 1 | . . . . . 1 . . . . . . . . . Impact 1 | . . . . . 1 . . . . . . . . . Kinetic . | . . . . . . . . . . . . . . . Secondary . | . . . . . . . . . . . . . . . Self-Inflicted Damage 267 | . 29 . . . . . . . . . . 209 29 . Shots 6 | . 1 . . . . . . . . . . 4 1 . Rammed 10 | . . . . . . . . . . . . 2 . 8 Targets Rammed 22 | . 8 . . . 2 . . . . . . 2 . 10 Kicked 12 | . 8 . . . 2 . . . . . . . . 2 Crushed . | . . . . . . . . . . . . . . . Highest Temperature 236 | 36 90 2 . . 3 11 . . 145 . 155 236 231 173 Average Temperature 60 | 18 37 2 . . 3 5 . . 55 . 81 92 89 85 Received Heat Transfer 3021 | . 135 27 . . 72 306 36 . 105 18 . 633 657 1032 Siege Activations . | . . . . . . . . . . . . . . . Martial Activations . | . . . . . . . . . . . . . . . Shielding Activations . | . . . . . . . . . . . . . . . Robots Disrupted 1 | . . . . . . . . . . . . . . 1 Combat Hostiles 1 | . . . . . . . . . . . . . . 1 Robots Corrupted . | . . . . . . . . . . . . . . . Combat Hostiles . | . . . . . . . . . . . . . . . Parts Fried 1 | . . . . . . . . . . . . . . 1 Impact Corruptions . | . . . . . . . . . . . . . . . Robots Melted . | . . . . . . . . . . . . . . . Combat Hostiles . | . . . . . . . . . . . . . . . Parts Melted 6 | . 1 . . . . . . . . . . . 5 . Heat Transferred 3238 | 100 550 . . . . . . . . . . 550 1816 222 Parts Sabotaged . | . . . . . . . . . . . . . . . Parts Stolen . | . . . . . . . . . . . . . . . Parts Stripped . | . . . . . . . . . . . . . . . Power Chain Reactions 1 | . 1 . . . . . . . . . . . . . Alert | -11 -10 -9 -9 -9 -8 -8 -7 -7 -7 -7 -7 -6 -5 -5 ------- Run | Yrd Mat Mat Min Exi Min Mat Fac Was Fac Low Low Fac Fac Upp Maximum Alert Level 3 | . . . . . . . . . . . . 3 2 . Low Security (%) 57 | 100 100 100 100 . 100 100 100 100 100 . . 23 . . Level 1 15 | . . . . . . . . . . . . 13 68 . Level 2 14 | . . . . . . . . . . . . 28 31 . Level 3 11 | . . . . . . . . . . . . 34 . . Level 4 . | . . . . . . . . . . . . . . . Level 5 . | . . . . . . . . . . . . . . . High Security . | . . . . . . . . . . . . . . . Max Security . | . . . . . . . . . . . . . . . Peak Influence 776 | 5 168 39 3 . 70 172 77 11 117 . . 776 538 . Initial 357 | . . 39 3 . . . 77 11 . . . . 357 . Average 235 | 1 116 15 . . 19 49 28 2 8 . . 455 359 . Influence Increases 3446 | 5 432 66 . . 130 351 116 . 182 60 . 1308 571 225 Destroy 0b10 Robot/C 1820 | . 280 20 . . 100 240 60 . 100 . . 720 220 80 Destroy 0b10 Robot/NC 105 | 5 . . . . . . . . 20 . . 65 15 . Destroy Leader 354 | . 50 10 . . 30 50 30 . 32 . . 112 30 10 Successful Hack 52 | . 8 6 . . . 7 26 . . . . 5 . . Select Force Hacks 30 | . 30 . . . . . . . . . . . . . Disable Machine 225 | . . . . . . . . . 15 . . 150 60 . Anti-Garrison Action 150 | . . . . . . . . . . . . . 150 . Destroy Structure 185 | . 4 . . . . 24 . . 15 . . 136 6 . Lose Combat Pursuer 525 | . 60 30 . . . 30 . . . 60 . 120 90 135 Influence Decreases 3446 | 5 338 150 10 . 130 179 254 34 75 167 . 578 857 669 Entered New Map 759 | . . 55 7 . . . 95 23 . 41 . . 373 165 Time Decay 2255 | 5 308 95 3 . 130 179 159 11 75 126 . 458 404 302 Lost Part 432 | . 30 . . . . . . . . . . 120 80 202 Squads Dispatched 20 | . 2 . . . . 3 1 . 1 . . 7 6 . Investigation 7 | . 2 . . . . 2 . . . . . 1 2 . Extermination 4 | . . . . . . . 1 . . . . 2 1 . Reinforcement 3 | . . . . . . 1 . . 1 . . 1 . . Assault 2 | . . . . . . . . . . . . . 2 . Garrison 4 | . . . . . . . . . . . . 3 1 . Intercept . | . . . . . . . . . . . . . . . Searches Triggered . | . . . . . . . . . . . . . . . Construction Impeded 1 | . . . . . . . . . . . . 1 . . Haulers Reinforced 1 | . . . . . . . . . 1 . . . . . Active Scanning Responses . | . . . . . . . . . . . . . . . Cargo Convoy Interrupts 1 | . . . . . . . . . . . . 1 . . Stealth | -11 -10 -9 -9 -9 -8 -8 -7 -7 -7 -7 -7 -6 -5 -5 --------- Run | Yrd Mat Mat Min Exi Min Mat Fac Was Fac Low Low Fac Fac Upp Distress Signals 4 | . 1 1 . . . 1 1 . . . . . . . Communications Jammed . | . . . . . . . . . . . . . . . Distress Signals . | . . . . . . . . . . . . . . . Times Spotted 166 | . 25 5 . . 5 14 5 6 7 4 . 56 23 16 Peak Tracking Total 11 | . 4 2 . . 3 3 3 6 4 4 . 11 5 6 Tactical Retreats 23 | . 3 1 . . . 1 . . . 2 . 8 5 3 Traps | -11 -10 -9 -9 -9 -8 -8 -7 -7 -7 -7 -7 -6 -5 -5 ------- Run | Yrd Mat Mat Min Exi Min Mat Fac Was Fac Low Low Fac Fac Upp Traps Triggered 6 | . 2 . . . . 1 1 . . . . 1 1 . Indirectly . | . . . . . . . . . . . . . . . Trap Hack Attempts . | . . . . . . . . . . . . . . . Triggered . | . . . . . . . . . . . . . . . Disarmed . | . . . . . . . . . . . . . . . Reprogrammed . | . . . . . . . . . . . . . . . Reused . | . . . . . . . . . . . . . . . Traps Extracted . | . . . . . . . . . . . . . . . Installed . | . . . . . . . . . . . . . . . Triggered . | . . . . . . . . . . . . . . . Machines | -11 -10 -9 -9 -9 -8 -8 -7 -7 -7 -7 -7 -6 -5 -5 ---------- Run | Yrd Mat Mat Min Exi Min Mat Fac Was Fac Low Low Fac Fac Upp Machines Disabled 16 | . . . . . . . . . 1 . . 10 5 . Max in Single Turn 2 | . . . . . . . . . 1 . . 2 2 . Garrison Access 1 | . . . . . . . . . . . . . 1 . Machines Repaired . | . . . . . . . . . . . . . . . Machines Dismantled . | . . . . . . . . . . . . . . . Machines Sabotaged . | . . . . . . . . . . . . . . . Overloaded Fab Kills . | . . . . . . . . . . . . . . . Hacking | -11 -10 -9 -9 -9 -8 -8 -7 -7 -7 -7 -7 -6 -5 -5 --------- Run | Yrd Mat Mat Min Exi Min Mat Fac Was Fac Low Low Fac Fac Upp Machines Accessed 21 | . 3 1 . 5 . 2 5 . 1 2 . 1 1 . Terminals 8 | . 2 . . . . 1 3 . . 1 . 1 . . Fabricators . | . . . . . . . . . . . . . . . Repair Stations 2 | . . 1 . . . . . . 1 . . . . . Recycling Units 3 | . 1 . . . . . 1 . . . . . 1 . Scanalyzers 1 | . . . . . . 1 . . . . . . . . Garrison Access 1 | . . . . . . . 1 . . . . . . . Total Hacks 91 | . 7 5 . 50 . 10 8 . 2 3 . 3 3 . Successful 77 | . 3 4 . 50 . 7 5 . 2 3 . 1 2 . Failed 14 | . 4 1 . . . 3 3 . . . . 2 1 . Catastrophic 5 | . 3 . . . . . 2 . . . . . . . Database Lockouts . | . . . . . . . . . . . . . . . Manual 3 | . 1 . . 2 . . . . . . . . . . Terminals 20 | . 5 . . . . 4 6 . . 2 . 3 . . Fabricators . | . . . . . . . . . . . . . . . Repair Stations 7 | . . 5 . . . . . . 2 . . . . . Recycling Units 6 | . 2 . . . . . 1 . . . . . 3 . Scanalyzers 6 | . . . . . . 6 . . . . . . . . Garrison Access 1 | . . . . . . . 1 . . . . . . . Terminal Hacks 61 | . 1 . . 50 . 2 4 . . 3 . 1 . . Record 54 | . . . . 49 . . 3 . . 2 . . . . Open Door 1 | . . . . . . . . . . 1 . . . . Level Access Points 1 | . 1 . . . . . . . . . . . . . Maintenance Status 1 | . . . . . . . 1 . . . . . . . Hauler Manifests 2 | . . . . . . 1 . . . . . 1 . . Zone Layout 1 | . . . . . . 1 . . . . . . . . Proto ID Catalog 1 | . . . . 1 . . . . . . . . . . Fabricator Hacks . | . . . . . . . . . . . . . . . Repair Station Hacks 6 | . . 4 . . . . . . 2 . . . . . Scan Component 3 | . . 2 . . . . . . 1 . . . . . Repair 3 | . . 2 . . . . . . 1 . . . . . Recycling Unit Hacks 4 | . 1 . . . . . 1 . . . . . 2 . Process 1 | . 1 . . . . . . . . . . . . . Report Inventory 2 | . . . . . . . 1 . . . . . 1 . Retrieve Components 1 | . . . . . . . . . . . . . 1 . Scanalyzer 5 | . . . . . . 5 . . . . . . . . Retrieve Study 5 | . . . . . . 5 . . . . . . . . Garrison Access Hacks . | . . . . . . . . . . . . . . . Unauthorized Hacks 1 | . 1 . . . . . . . . . . . . . Terminals . | . . . . . . . . . . . . . . . Fabricators . | . . . . . . . . . . . . . . . Repair Stations . | . . . . . . . . . . . . . . . Recycling Units 1 | . 1 . . . . . . . . . . . . . Tunnel 1 | . 1 . . . . . . . . . . . . . Scanalyzers . | . . . . . . . . . . . . . . . Garrison Access . | . . . . . . . . . . . . . . . Data Cores Recovered . | . . . . . . . . . . . . . . . Used . | . . . . . . . . . . . . . . . Hacking Detections 12 | . 3 1 . . . 2 4 . . . . 1 1 . Full Trace Events 5 | . 1 . . . . 2 . . . . . 1 1 . Feedback Events . | . . . . . . . . . . . . . . . Feedback Blocked . | . . . . . . . . . . . . . . . Robot Schematics Acquired . | . . . . . . . . . . . . . . . Robots Built . | . . . . . . . . . . . . . . . Authchips . | . . . . . . . . . . . . . . . Time . | . . . . . . . . . . . . . . . Total Robot Build Rating . | . . . . . . . . . . . . . . . Part Schematics Acquired . | . . . . . . . . . . . . . . . Parts Built . | . . . . . . . . . . . . . . . Authchips . | . . . . . . . . . . . . . . . Time . | . . . . . . . . . . . . . . . Total Part Build Rating . | . . . . . . . . . . . . . . . Part Studies Acquired 5 | . . . . . . 5 . . . . . . . . Parts Repaired 3 | . . 2 . . . . . . 1 . . . . . Time 84 | . . 52 . . . . . . 32 . . . . . Parts Recycled . | . . . . . . . . . . . . . . . Recycled Matter 203 | . 203 . . . . . . . . . . . . . Retrieved Matter . | . . . . . . . . . . . . . . . Retrieved Components 1 | . . . . . . . . . . . . . 1 . Parts Scanalyzed . | . . . . . . . . . . . . . . . Part Schematics Acquired . | . . . . . . . . . . . . . . . Parts Damaged . | . . . . . . . . . . . . . . . Bothacking | -11 -10 -9 -9 -9 -8 -8 -7 -7 -7 -7 -7 -6 -5 -5 ------------ Run | Yrd Mat Mat Min Exi Min Mat Fac Was Fac Low Low Fac Fac Upp Used RIF Installer . | . . . . . . . . . . . . . . . Robots Hacked . | . . . . . . . . . . . . . . . Non-combat . | . . . . . . . . . . . . . . . Combat . | . . . . . . . . . . . . . . . Robot Hacks Applied . | . . . . . . . . . . . . . . . Relay Couplers Released . | . . . . . . . . . . . . . . . Fabnet Peak Effective % . | . . . . . . . . . . . . . . . Robots Rewired . | . . . . . . . . . . . . . . . Allies Hacked . | . . . . . . . . . . . . . . . Hacks Repelled . | . . . . . . . . . . . . . . . Allies | -11 -10 -9 -9 -9 -8 -8 -7 -7 -7 -7 -7 -6 -5 -5 -------- Run | Yrd Mat Mat Min Exi Min Mat Fac Was Fac Low Low Fac Fac Upp Total Allies 2 | . . . 2 . . . . . . . . . . . Largest Group 2 | . . . 2 2 . . . . . . . . . . Highest-Rated Group 42 | . . . 42 42 . . . . . . . . . . Highest-Rated Ally 31 | . . . 31 31 . . . . . . . . . . Total Orders . | . . . . . . . . . . . . . . . Ally Attacks . | . . . . . . . . . . . . . . . Total Damage . | . . . . . . . . . . . . . . . Kills . | . . . . . . . . . . . . . . . Allies Corrupted . | . . . . . . . . . . . . . . . Allies Melted . | . . . . . . . . . . . . . . . Intel | -11 -10 -9 -9 -9 -8 -8 -7 -7 -7 -7 -7 -6 -5 -5 ------- Run | Yrd Mat Mat Min Exi Min Mat Fac Was Fac Low Low Fac Fac Upp Active Infowar (turns) 5559 | 31 542 . . . . . 311 77 381 350 51 2079 961 776 Optics 4986 | . . . . . . . 311 77 381 350 51 2079 961 776 Sensors 333 | . . . . . . . . . . . . . 333 . Terrain 573 | 31 542 . . . . . . . . . . . . . Robot Analysis Total . | . . . . . . . . . . . . . . . Derelict Logs Recovered 3 | . . . 1 . . . . . . 1 . . . 1 Drone Launches . | . . . . . . . . . . . . . . . Drone Recoveries . | . . . . . . . . . . . . . . . Exploration | -11 -10 -9 -9 -9 -8 -8 -7 -7 -7 -7 -7 -6 -5 -5 ------------- Run | Yrd Mat Mat Min Exi Min Mat Fac Was Fac Low Low Fac Fac Upp Turns Passed 8319 | 84 714 227 202 1081 540 454 342 77 381 350 51 2079 961 776 Spaces Moved 6372 | 48 457 87 71 901 243 524 569 129 465 597 99 1364 446 372 Core 8 | 2 . . . . . . . . . . . 1 . 5 Treads 1136 | . . . . . . . . . . . . 777 359 . Legs 2259 | 46 457 87 71 901 243 . . . . . . . 87 367 Wheels . | . . . . . . . . . . . . . . . Hover . | . . . . . . . . . . . . . . . Flight 2969 | . . . . . . 524 569 129 465 597 99 586 . . Fastest Speed 50 | 50 120 120 120 120 190 50 50 50 50 50 50 50 120 120 Average Speed 102 | 117 124 180 128 120 190 50 50 50 50 50 50 118 157 164 Slowest Speed 1050 | 120 190 190 190 120 190 50 50 50 50 50 50 800 190 1050 Overloaded Moves . | . . . . . . . . . . . . . . . Propulsion Burnouts . | . . . . . . . . . . . . . . . Robots Hopped 15 | . . . . . . 4 4 . 3 3 . 1 . . Potential Cave-ins . | . . . . . . . . . . . . . . . Cave-ins Triggered . | . . . . . . . . . . . . . . . Exploration Rate (%) 37 | 3 52 9 14 93 52 31 15 81 15 71 18 36 8 60 Regions Visited 14 Branch Regions 6 Pre-discovered Areas 3 | . 1 . . 1 . . . . . . . . . 1 Known Exits Taken 11 | . 1 1 1 1 1 1 . . 1 1 1 1 1 . Unknown Exits Taken 1 | 1 . . . . . . . . . . . . . . Scrap Searched 5 | . . . . . . . . . . 2 . . . 3 Spaces Dug 7 | . . . . . . . . . . . . 7 . . Terrain Destroyed 225 | . 3 . . . . 37 . . 14 10 . 155 2 4 Melee 7 | . . . . . . . . . . . . 7 . . Projectile 10 | . . . . . . . . . . . . 4 2 4 AOE 208 | . 3 . . . . 37 . . 14 10 . 144 . . Terrain Rammed . | . . . . . . . . . . . . . . . Walls Destroyed . | . . . . . . . . . . . . . . . Machines Disabled . | . . . . . . . . . . . . . . . Actions | -11 -10 -9 -9 -9 -8 -8 -7 -7 -7 -7 -7 -6 -5 -5 --------- Run | Yrd Mat Mat Min Exi Min Mat Fac Was Fac Low Low Fac Fac Upp Total 7569 | 65 548 152 181 901 279 647 597 141 581 649 99 1640 626 463 Wait 585 | . 27 52 109 . . 39 . 8 83 40 . 102 92 33 Move 6332 | 47 457 86 70 900 242 516 562 128 458 590 98 1361 445 372 Hop 13 | . . . . . . 3 3 . 3 3 . 1 . . Pick Up 89 | 6 11 2 . 1 3 16 5 2 4 4 . 18 14 3 Fast Attach 36 | 6 1 3 . . . 3 . 1 2 2 . 12 4 2 Attach 42 | 1 1 3 . . 1 1 3 . 1 . . 11 10 10 Detach 8 | . . 1 1 . . . . . . . . 2 4 . Swap 52 | . 3 2 1 . 4 7 5 . 6 1 1 13 7 2 Drop 86 | . 9 1 . . 5 22 5 2 7 9 . 15 4 7 Fire 284 | 5 32 2 . . 22 40 14 . 17 . . 95 41 16 Melee 21 | . . . . . . . . . . . . 8 5 8 Ram 8 | . . . . . . . . . . . . . . 8 Kick 11 | . 7 . . . 2 . . . . . . . . 2 Crush 2 | . . . . . . . . . . . . 2 . . Escape Stasis . | . . . . . . . . . . . . . . . Rewire . | . . . . . . . . . . . . . . . Trap . | . . . . . . . . . . . . . . . Miscellaneous . | . . . . . . . . . . . . . . . Route ------- -11/Scrapyard -10/Materials (discovered 3 exits: *Mat x3) -9/Materials (discovered 2 exits: *Min / *Sto) -9/Mines -9/Exiles (discovered 2 exits: *Min x2) -8/Mines -8/Materials -7/Factory -7/Waste -7/Factory -7/Lower Caves -7/Lower Caves -6/Factory -5/Factory -5/Upper Caves History --------- Turn | Location | Event 15 | -11/Scrapyard | Discovered new exit (range 16) 85 | -11/Scrapyard | Entered Materials 348 | -10/Materials | Build established: Mutant 447 | -10/Materials | Identified exit to Materials 799 | -10/Materials | Core integrity fell below 50% 799 | -10/Materials | Entered another Materials area 799 | -9/Materials | Evolved 2 slots: Propulsion x1, Utility x1 876 | -9/Materials | Repaired Ion Engine 922 | -9/Materials | Repaired Aluminum Leg 949 | -9/Materials | Met 8R-AWN 962 | -9/Materials | Discovered new exit (range 16) 996 | -9/Materials | Discovered new exit (range 13) 998 | -9/Materials | Identified exit to Storage 1024 | -9/Materials | Identified exit to Mines 1026 | -9/Materials | Entered Mines 1028 | -9/Mines | Followed 8R-AWN into the Mines 1078 | -9/Mines | Learned Materials stockpile data 1113 | -9/Mines | Discovered new exit (range 5) 1118 | -9/Mines | Identified exit to Exiles 1228 | -9/Mines | Entered Exiles 1228 | -9/Exiles | Accompanied by 2 allies 1257 | -9/Exiles | Welcomed by 8R-AWN 1258 | -9/Exiles | Led the pair of lost Derelicts to a safe place 1278 | -9/Exiles | Met EX-HEX 1347 | -9/Exiles | Met EX-BIN 1382 | -9/Exiles | Aligned with FarCom system 1383 | -9/Exiles | Given EX-Vault access code 1515 | -9/Exiles | Opened EX-Vault 1545 | -9/Exiles | Warned to stay clear of 0b10 Research branches 1579 | -9/Exiles | Met EX-DEC 1590 | -9/Exiles | Learned location of Zion (-6) 1694 | -9/Exiles | Discovered new exit (range 14) 1716 | -9/Exiles | Identified exit to Mines 1811 | -9/Exiles | Visited The Gauntlet 2178 | -9/Exiles | Found Flying Fortress v7 2264 | -9/Exiles | Learned about 8R-AWN's background 2293 | -9/Exiles | Discovered exit to Mines (range 14) 2309 | -9/Exiles | Left Exiles lab with Flying Fortress v7 2309 | -9/Exiles | Entered Mines 2775 | -8/Mines | Found a Scrap Suit stashed away for nefarious purposes 2828 | -8/Mines | Discovered new exit (range 9) 2845 | -8/Mines | Identified exit to Materials 2849 | -8/Mines | Entered Materials 2849 | -8/Materials | Evolved 2 slots: Propulsion x1, Utility x1 3117 | -8/Materials | Discovered new exit (range 16) 3260 | -8/Materials | Identified exit to Factory 3303 | -8/Materials | Entered Factory 3303 | -7/Factory | Evolved 2 slots: Utility x2 3591 | -7/Factory | Build established: Scavenger-Mutant 3645 | -7/Factory | Sucked down chute 3645 | -7/Factory | Entered Waste 3659 | -7/Waste | Spotted C-40 Crusher 3660 | -7/Waste | EMP discharged 3660 | -7/Waste | Spotted C-40 Crusher 3663 | -7/Waste | Spotted C-40 Crusher 3665 | -7/Waste | Spotted C-40 Crusher 3665 | -7/Waste | Spotted C-40 Crusher 3683 | -7/Waste | Spotted C-40 Crusher 3712 | -7/Waste | Discovered new exit (range 13) 3722 | -7/Waste | Identified exit to Factory 3722 | -7/Waste | Entered Factory 3804 | -7/Factory | Repaired Hvy. Assault Rifle+ 4058 | -7/Factory | Discovered new exit (range 19) 4099 | -7/Factory | Identified exit to Lower Caves 4103 | -7/Factory | Entered Lower Caves 4250 | -7/Lower Caves | Found Prototype Device 4269 | -7/Lower Caves | Build established: Mutant 4360 | -7/Lower Caves | Learned Factory terminal intel 4446 | -7/Lower Caves | Discovered new exit (range 5) 4449 | -7/Lower Caves | Identified exit to Lower Caves 4453 | -7/Lower Caves | Entered another Lower Caves area 4499 | -7/Lower Caves | Discovered new exit (range 9) 4503 | -7/Lower Caves | Identified exit to Factory 4504 | -7/Lower Caves | Entered Factory 4504 | -6/Factory | Evolved 2 slots: Propulsion x1, Utility x1 4505 | -6/Factory | Loaded intel: 28 terminal locations 5269 | -6/Factory | Cargo convoy interrupted 5329 | -6/Factory | Destroyed 9 combat bots 5946 | -6/Factory | Lost 4 parts (1p2n1w) 6002 | -6/Factory | Garrison activated, responded to threat 6238 | -6/Factory | Build established: Scavenger-Mutant 6493 | -6/Factory | Discovered new exit (range 20) 6582 | -6/Factory | Identified exit to Factory 6583 | -6/Factory | Entered another Factory area 6583 | -5/Factory | Evolved 2 slots: Utility x2 6717 | -5/Factory | Lost 5 parts (1p2n1u1w) 7238 | -5/Factory | Garrison activated, responded to threat 7471 | -5/Factory | Build established: Scavenger-Skirmisher 7500 | -5/Factory | Identified Heart of Steel 7527 | -5/Factory | Discovered new exit (range 9) 7542 | -5/Factory | Identified exit to Upper Caves 7544 | -5/Factory | Entered Upper Caves 7792 | -5/Upper Caves | Build established: Scavenger-Mutant 7879 | -5/Upper Caves | Attracted the attention of an 0b10 outpost 7934 | -5/Upper Caves | Learned location of Armory (-4) 8219 | -5/Upper Caves | Core integrity fell below 50% 8253 | -5/Upper Caves | Lost 21 parts (2p10n3u6w) 8265 | -5/Upper Caves | Core integrity fell below 20% 8320 | -5/Upper Caves | Destroyed by G-67 Veteran with Plasma Rifle Last Messages --------------- 08216_ Pulse Rifle destroyed. 08217_ Acquired 67 matter. 08220_ Flexi-carbon Leg fries itself beyond repair. 08220_ Kicked G-67 Veteran out of the way. 08222_ Kicked G-67 Veteran. 08222_ Carbon-fiber Leg destroyed. 08225_ Slammed into G-67 Veteran. 08226_ Flexi-carbon Leg fries itself beyond repair. 08232_ Slammed into G-67 Veteran. 08239_ Adv. Signal Interpreter broken. 08239_ Destabilizing: Short circuit. 08246_ Slammed into G-67 Veteran. 08247_ Acquired 54 matter. 08253_ Slammed into G-67 Veteran. 08274_ Destabilizing: System corrupted (+2). 08281_ Acquired Carbon-fiber Leg. 08290_ Acquired 58 matter. 08292_ Acquired 30 matter. 08294_ Carbon-fiber Leg destroyed. 08312_ Target Analyzer destroyed. Map ----- +----------------------------------------------------+ | ?????????????????????????????????????# ### #?? | | ?????????????????????????????????????# #?# ##?? | | ?????????????????????????????????????# #?# ###??? | | ?????????????????????????????????????# ### #????? | | ?????????????????????????????????????# #????? | | ?????????????????????????????????###?##### #????? | | ?????????????????????????????????# ##???# #????? | | ?????????????????????????????????# ###?# #????? | | ????????????????? ##??????????## ### #????? | | ??????????????? ???????#### ##???? | | ????????????? ##?????# ## ##??? | | ?????????????# ?????# ## #??? | | ?????????? ### ?????# ## ##??? | | ?????????? #?????# #???? | | ??????????? ##???## ### ##???? | | ???????????? ##### ##?###????? | | ?????????????# ###?????????? | | ??????????????# #???????????? | | ??????????????# !*##??????????? | | ???????????????# ! = ##?????????? | | ????????????????# !! #?????????? | | ????????????????# # #?????????? | | ????????????????? # ## #?????????? | | ???????????????????# ## ?# #????????? | | ???????????????????# % ## ?# ######### | | ???????????????????# @ ####?# | | ???????????????????## [ % #???## | | ??????????????????###% ;# ###### ##### | | ?????????????????##% ;### #????# | | ???????????????### ;###?## ##?????## | | ??????????????## g;##????# ### ##???????? | | ??????????????# ##????# ### ##??????? | | ??????????????# ### #????# ##?# #??????? | | ??????????????###?## ##????### ##?# #??????? | | ???????????????????###???????####??# ##??????? | | ???????????????????????????????????#######???????? | | ?????????????????????????????????????????????????? | | ?????????????????????????????????????????????????? | | ?????????????????????????????????????????????????? | | ?????????????????????????????????????????????????? | | ?????????????????????????????????????????????????? | | ?????????????????????????????????????????????????? | | ?????????????????????????????????????????????????? | | ?????????????????????????????????????????????????? | | ?????????????????????????????????????????????????? | | ?????????????????????????????????????????????????? | | ?????????????????????????????????????????????????? | | ?????????????????????????????????????????????????? | | ?????????????????????????????????????????????????? | | ?????????????????????????????????????????????????? | +----------------------------------------------------+ Best States ------------- Heat Dissipation 78 Energy Generation 21 Energy Capacity 315 Matter Stores 300 Matter Capacity 300 Sight Range 20 Robot Scan Range 16 Terrain Scan Range 16 Terrain Scan Density 10 Armor Coverage 225 Core Shielding 30 Evasion (%) 70 Targeting Accuracy 16 Target Analysis 5 Core Analysis 6 Recoil Reduction 5 Item Schematics ----------------- None Robot Schematics ------------------ None Fabricated ------------ Nothing Repaired ---------- Ion Engine | 16% | -9/Materials Aluminum Leg | 34% | -9/Materials Hvy. Assault Rifle | 41% | -7/Factory Studied --------- Hvy. Assault Rifle | -8/Materials | Hacked Assault Rifle | -8/Materials | Hacked Lgt. Nuclear Core | -8/Materials | Hacked Deuterium Engine | -8/Materials | Hacked Arm. Treads | -8/Materials | Hacked Alien Tech Used ----------------- None Achievements -------------- Brute Force Follow The Leader Maybe Next Time I'll Detach My Launcher Oh No You Don't! Sixth Sense Challenges ------------ None Game ------ Seed GuidedTachyonThrower Manual? 0 Play Time 01:52:11 Cumulative 59.8 hours Start 2025.11.22 @ 14:16:07 End 2025.11.22 @ 19:03:43 Sessions 1 Manual Loads 0 Difficulty Rogue Special Mode None Game No. 56 Rogue 51 Adventurer 0 Explorer 5 Win Type - Total 0 Types 0/0/0/0/0/0/0/0/0/0 Lore% 26 Gallery% 29 Achievement% 21 Wizard Run 0 Options --------- Layout 0 ASCII 0 Keyboard 0 Movement Numpad Keybinds 0 Fullscreen 2 Font 18/SmallcapsGlow Map View 76x50 Zoom Use 0% Tactical HUD 1 Map Filters NONE Filters NONE Steam 1 RUN: 82491ae6-4b52-43ae-b3c8-d03f0358c582